fUSD/lending_fUSD_20240319
["ID","MTS","AMOUNT","RATE_DAILY","PERIOD"]
[319525929,1710827453640,-1906.74,0.00054794,120]
[319525930,1710827453650,-1828.07,0.00054794,120]
[319525931,1710827453660,-500.0,0.00054794,120]
[319525932,1710827453670,-1034.04,0.00054794,120]
[319525933,1710827453680,-502.74417535,0.00054794,120]
[319525934,1710827453690,-501.48940455,0.00054794,120]
[319525935,1710827453700,-500.0,0.00054794,120]
[319525936,1710827453713,-500.0,0.00054794,120]
[319525937,1710827453722,-500.0,0.00054794,120]
[319525938,1710827453732,-505.01155907,0.00054794,120]
[319525939,1710827453742,-1028.45,0.00054794,120]
[319525940,1710827453756,-500.0,0.00054794,120]
[319525941,1710827453766,-500.0,0.00054794,120]
[319525942,1710827453776,-490.03295371,0.00054794,120]
[319525943,1710827453785,-1268.03,0.00054794,120]
[319525944,1710827453796,-500.0,0.00054794,120]
[319525945,1710827453806,-500.0,0.00054794,120]
[319525946,1710827453816,-1148.36,0.00054794,120]
[319525947,1710827453828,-500.0,0.00054794,120]
[319525948,1710827453837,-500.0,0.00054794,120]
[319525949,1710827453848,-1653.79,0.00054794,120]
[319525950,1710827453858,-322.50550058,0.00054794,60]
[319525951,1710827453869,-500.0,0.00054794,120]
[319525952,1710827453879,-500.0,0.00054794,120]
[319525953,1710827453889,-500.0,0.00054794,120]
[319525954,1710827453899,-500.0,0.00054794,120]
[319525955,1710827453909,-1023.81,0.00054794,120]
[319525956,1710827453919,-500.0,0.00054794,120]
[319525957,1710827453930,-500.0,0.00054794,120]
[319525958,1710827453939,-500.0,0.00054794,120]
[319525959,1710827453949,-2088.57,0.00054794,120]
[319525960,1710827453962,-500.0,0.00054794,120]
[319525961,1710827453971,-500.0,0.00054794,120]
[319525962,1710827453982,-562.53,0.00054794,120]
[319525963,1710827453992,-500.0,0.00054794,2]
[319525964,1710827454002,-500.0,0.00054794,120]
[319525965,1710827454013,-625.71,0.00054794,120]
[319525966,1710827454025,-500.0,0.00054794,120]
[319525967,1710827454035,-500.0,0.00054794,120]
[319525968,1710827454047,-1750.75,0.00054794,120]
[319525969,1710827454057,-501.08,0.00054794,120]
[319525970,1710827454067,-500.0,0.00054794,120]
[319525971,1710827454077,-1049.36,0.00054794,120]
[319525972,1710827454087,-827.55,0.00054794,120]
[319525973,1710827454098,-888.26,0.00054794,120]
[319525974,1710827454108,-982.82,0.00054794,120]
[319525975,1710827454118,-1779.27,0.00054794,120]
[319525976,1710827454127,-403.05529964,0.00054794,60]
[319525977,1710827454137,-500.0,0.00054794,120]
[319525978,1710827454147,-500.0,0.00054794,120]
[319525979,1710827454157,-500.0,0.00054794,120]
[319525980,1710827454167,-500.0,0.00054794,120]
[319525981,1710827454177,-500.0,0.00054794,120]
[319525982,1710827454187,-500.0,0.00054794,120]
[319525983,1710827454197,-1147.76,0.00054794,120]
[319525984,1710827454211,-1745.12,0.00054794,120]
[319525985,1710827454220,-500.0,0.00054794,120]
[319525986,1710827454230,-925.63,0.00054794,120]
[319525987,1710827454240,-500.0,0.00054794,120]
[319525988,1710827454250,-854.16,0.00054794,120]
[319525989,1710827454260,-500.0,0.00054794,120]
[319525990,1710827454270,-505.11,0.00054794,120]
[319525991,1710827454279,-500.0,0.00054794,120]
[319525992,1710827454289,-734.76,0.00054794,120]
[319525993,1710827454299,-535.28,0.00054794,120]
[319525994,1710827454308,-526.02,0.00054794,120]
[319525995,1710827454318,-500.29482714,0.00054794,120]
[319525996,1710827454329,-500.0,0.00054794,120]
[319525997,1710827454339,-500.0,0.00054794,120]
[319525998,1710827454349,-500.0,0.00054794,120]
[319525999,1710827454359,-500.0,0.00054794,120]
[319526000,1710827454370,-1564.61,0.00054794,120]
[319526001,1710827454379,-1313.48,0.00054794,120]
[319526002,1710827454389,-500.0,0.00054794,120]
[319526003,1710827454399,-2662.67,0.00054794,120]
[319526004,1710827454409,-500.0,0.00054794,120]
[319526005,1710827454419,-500.0,0.00054794,120]
[319526006,1710827454429,-500.0,0.00054794,120]
[319526007,1710827454438,-500.0,0.00054794,120]
[319526008,1710827454449,-557.43926562,0.00054794,120]
[319526009,1710827454463,-1397.08,0.00054794,120]
[319526010,1710827454713,-500.0,0.00054794,120]
[319526011,1710827454724,-500.0,0.00054794,120]
[319526012,1710827454734,-866.38,0.00054794,120]
[319526013,1710827454743,-1097.4,0.00054794,120]
[319526014,1710827454753,-1439.36,0.00054794,120]
[319526015,1710827454764,-500.0,0.00054794,120]
[319526016,1710827454773,-500.0,0.00054794,120]
[319526017,1710827454783,-500.0,0.00054794,120]
[319526018,1710827454793,-1928.4,0.00054794,120]
[319526019,1710827454804,-500.0,0.00054794,120]
[319526020,1710827454814,-500.0,0.00054794,120]
[319526021,1710827454824,-544.36575802,0.00054794,120]
[319526022,1710827454834,-263.66110287,0.00054794,120]
[319526023,1710827454844,-500.0,0.00054794,120]
[319526024,1710827454853,-513.28404512,0.00054794,120]
[319526025,1710827454863,-500.0,0.00054794,120]
[319526026,1710827454873,-1964.81,0.00054794,120]
[319526027,1710827454883,-500.0,0.00054794,120]
[319526028,1710827454893,-660.08,0.00054794,120]
[319526029,1710827454902,-588.91404774,0.00054794,120]
[319526030,1710827454912,-1239.73,0.00054794,120]
[319526031,1710827454922,-503.1200509,0.00054794,120]
[319526032,1710827454932,-500.0,0.00054794,120]
[319526033,1710827454942,-500.0,0.00054794,120]
[319526034,1710827454951,-500.0,0.00054794,120]
[319526035,1710827454965,-967.08,0.00054794,120]
[319526036,1710827454975,-500.0,0.00054794,120]
[319526037,1710827454986,-500.0,0.00054794,120]
[319526038,1710827454996,-503.96075946,0.00054794,120]
[319526039,1710827455006,-1730.58,0.00054794,120]
[319526040,1710827455016,-500.0,0.00054794,120]
[319526041,1710827455025,-500.0,0.00054794,120]
[319526042,1710827455035,-500.0,0.00054794,120]
[319526043,1710827455044,-1374.2,0.00054794,120]
[319526044,1710827455054,-1049.65,0.00054794,120]
[319526045,1710827455063,-2060.17,0.00054794,120]
[319526046,1710827455073,-510.5,0.00054794,120]
[319526047,1710827455083,-500.0,0.00054794,120]
[319526048,1710827455093,-500.0,0.00054794,120]
[319526049,1710827455102,-500.0,0.00054794,120]
[319526050,1710827455111,-500.0,0.00054794,120]
[319526051,1710827455121,-500.0,0.00054794,120]
[319526052,1710827455131,-500.0,0.00054794,120]
[319526053,1710827455140,-1994.76,0.00054794,120]
[319526054,1710827455150,-500.0,0.00054794,120]
[319526055,1710827455159,-500.0,0.00054794,120]
[319526056,1710827455169,-500.0,0.00054794,120]
[319526057,1710827455178,-1336.07,0.00054794,120]
[319526058,1710827455188,-500.0,0.00054794,120]
[319526059,1710827455198,-500.0,0.00054794,120]
[319526060,1710827455212,-2991.56,0.00054794,120]
[319526061,1710827455222,-500.0,0.00054794,120]
[319526062,1710827455231,-179.45858558,0.00054794,120]
[319526063,1710827455242,-500.0,0.00054794,120]
[319526064,1710827455253,-500.0,0.00054794,120]
[319526065,1710827455262,-500.0,0.00054794,120]
[319526066,1710827455272,-500.0,0.00054794,120]
[319526067,1710827455282,-595.79,0.00054794,120]
[319526068,1710827455291,-500.0,0.00054794,120]
[319526069,1710827455300,-500.0,0.00054794,120]
[319526070,1710827455309,-500.0,0.00054794,120]
[319526071,1710827455319,-500.0,0.00054794,120]
[319526072,1710827455328,-500.0,0.00054794,120]
[319526073,1710827455338,-500.0,0.00054794,120]
[319526074,1710827455347,-512.01953974,0.00054794,120]
[319526075,1710827455356,-500.0,0.00054794,120]
[319526076,1710827455365,-1021.8,0.00054794,120]
[319526077,1710827455375,-500.0,0.00054794,120]
[319526078,1710827455384,-1288.74,0.00054794,120]
[319526079,1710827455394,-500.0,0.00054794,120]
[319526080,1710827455404,-500.0,0.00054794,120]
[319526081,1710827455413,-500.0,0.00054794,120]
[319526082,1710827455423,-503.26791316,0.00054794,120]
[319526083,1710827455432,-1779.68,0.00054794,120]
[319526084,1710827455441,-500.0,0.00054794,120]
[319526085,1710827455450,-1753.04,0.00054794,120]
[319526086,1710827455462,-500.49712732,0.00054794,120]
[319526087,1710827455471,-500.0,0.00054794,120]
[319526088,1710827455480,-500.0,0.00054794,120]
[319526089,1710827455489,-500.0,0.00054794,120]
[319526090,1710827455499,-500.0,0.00054794,120]
[319526091,1710827455508,-500.0,0.00054794,120]
[319526092,1710827455518,-500.0,0.00054794,120]
[319526093,1710827455527,-500.0,0.00054794,120]
[319526094,1710827455537,-2273.03,0.00054794,120]
[319526095,1710827455547,-509.93,0.00054794,120]
[319526096,1710827455557,-500.0,0.00054794,120]
[319526097,1710827455567,-1250.13,0.00054794,120]
[319526098,1710827455577,-650.12,0.00054794,120]
[319526099,1710827455587,-1725.58,0.00054794,120]
[319526100,1710827455596,-501.62539363,0.00054794,120]
[319526101,1710827455606,-616.43304696,0.00054794,120]
[319526102,1710827455616,-500.0,0.00054794,120]
[319526103,1710827455625,-500.0,0.00054794,120]
[319526104,1710827455635,-500.0,0.00054794,120]
[319526105,1710827455644,-500.0,0.00054794,120]
[319526106,1710827455653,-593.53,0.00054794,120]
[319526107,1710827455663,-500.0,0.00054794,120]
[319526108,1710827455672,-1663.43,0.00054794,120]
[319526109,1710827455682,-500.0,0.00054794,120]
[319526110,1710827455691,-500.0,0.00054794,120]
[319526111,1710827455701,-500.0,0.00054794,120]
[319526112,1710827455713,-500.0,0.00054794,120]
[319526113,1710827455723,-500.0,0.00054794,120]
[319526114,1710827455733,-500.0,0.00054794,120]
[319526115,1710827455742,-500.0,0.00054794,120]
[319526116,1710827455753,-500.0,0.00054794,120]
[319526117,1710827455765,-515.58,0.00054794,120]
[319526118,1710827455775,-500.0,0.00054794,120]
[319526119,1710827455784,-500.0,0.00054794,120]
[319526120,1710827455794,-511.15776145,0.00054794,120]
[319526121,1710827455804,-578.4,0.00054794,120]
[319526122,1710827455813,-500.0,0.00054794,120]
[319526123,1710827455823,-500.0,0.00054794,120]
[319526124,1710827455833,-580.72,0.00054794,120]
[319526125,1710827455843,-500.0,0.00054794,120]
[319526126,1710827455853,-500.0,0.00054794,120]
[319526127,1710827455863,-1961.16,0.00054794,120]
[319526128,1710827455873,-500.0,0.00054794,120]
[319526129,1710827455883,-500.0,0.00054794,120]
[319526130,1710827455893,-500.0,0.00054794,120]
[319526131,1710827455903,-500.0,0.00054794,120]
[319526132,1710827455913,-633.93,0.00054794,120]
[319526133,1710827455922,-500.0,0.00054794,120]
[319526134,1710827455933,-500.0,0.00054794,120]
[319526135,1710827455943,-500.0,0.00054794,120]
[319526136,1710827455953,-492.43755109,0.00054794,120]
[319526137,1710827455963,-500.0,0.00054794,120]
[319526138,1710827455973,-500.0,0.00054794,120]
[319526139,1710827455983,-500.0,0.00054794,120]
[319526140,1710827455993,-500.0,0.00054794,120]
[319526141,1710827456003,-1389.97,0.00054794,120]
[319526142,1710827456013,-500.0,0.00054794,120]
[319526143,1710827456023,-502.11483214,0.00054794,120]
[319526144,1710827456033,-1624.64,0.00054794,120]
[319526145,1710827456042,-500.0,0.00054794,120]
[319526146,1710827456052,-500.0,0.00054794,120]
[319526147,1710827456062,-500.0,0.00054794,120]
[319526148,1710827456072,-500.0,0.00054794,120]
[319526149,1710827456081,-500.0,0.00054794,120]
[319526150,1710827456090,-500.0,0.00054794,120]
[319526151,1710827456100,-500.0,0.00054794,120]
[319526152,1710827456110,-500.0,0.00054794,120]
[319526153,1710827456120,-157.88297355,0.00054794,120]
[319526154,1710827456129,-500.0,0.00054794,120]
[319526155,1710827456139,-650.76,0.00054794,120]
[319526156,1710827456150,-500.0,0.00054794,120]
[319526157,1710827456160,-500.0,0.00054794,120]
[319526158,1710827456171,-500.0,0.00054794,120]
[319526159,1710827456181,-500.0,0.00054794,120]
[319526160,1710827456191,-500.0,0.00054794,120]
[319526161,1710827456202,-500.0,0.00054794,120]
[319526162,1710827456215,-500.0,0.00054794,120]
[319526163,1710827456224,-500.0,0.00054794,120]
[319526164,1710827456234,-500.0,0.00054794,120]
[319526165,1710827456243,-500.0,0.00054794,120]
[319526166,1710827456253,-500.0,0.00054794,120]
[319526167,1710827456263,-1101.66,0.00054794,120]
[319526168,1710827456272,-805.67,0.00054794,120]
[319526169,1710827456282,-500.0,0.00054794,120]
[319526170,1710827456291,-500.0,0.00054794,120]
[319526171,1710827456301,-196.67209126,0.00054794,120]
[319526172,1710827456311,-7025.4,0.00054794,120]
[319526173,1710827456322,-500.0,0.00054794,120]
[319526174,1710827456331,-500.0,0.00054794,120]
[319526175,1710827456342,-5000.0,0.00054794,120]
[319526176,1710827456352,-500.0,0.00054794,120]
[319526177,1710827456362,-500.0,0.00054794,120]
[319526178,1710827456371,-484.33052036,0.00054794,120]
[319526179,1710827456381,-500.0,0.00054794,120]
[319526180,1710827456390,-500.0,0.00054794,120]
[319526181,1710827456400,-502.58242457,0.00054794,120]
[319526182,1710827456409,-532.95594624,0.00054794,120]
[319526183,1710827456419,-500.0,0.00054794,120]
[319526184,1710827456428,-500.0,0.00054794,120]
[319526185,1710827456437,-777.69,0.00054794,120]
[319526186,1710827456446,-1841.28,0.00054794,120]
[319526187,1710827456458,-500.0,0.00054794,120]
[319526188,1710827456467,-500.0,0.00054794,120]
[319526189,1710827456476,-225.86997374,0.00054794,120]
[319526190,1710827456486,-2559.72,0.00054794,120]
[319526191,1710827456495,-500.0,0.00054794,120]
[319526192,1710827456505,-329.48,0.00054794,120]
[319526193,1710827456514,-531.0,0.00054794,120]
[319526194,1710827456523,-809.07,0.00054794,120]
[319526195,1710827456533,-1186.03,0.00054794,120]
[319526196,1710827456542,-500.0,0.00054794,120]
[319526197,1710827456552,-500.0,0.00054794,120]
[319526198,1710827456561,-500.0,0.00054794,120]
[319526199,1710827456570,-500.0,0.00054794,120]
[319526200,1710827456580,-829.75,0.00054794,120]
[319526201,1710827456589,-500.0,0.00054794,120]
[319526202,1710827456599,-498.24954269,0.00054794,120]
[319526203,1710827456608,-500.0,0.00054794,120]
[319526204,1710827456618,-500.0,0.00054794,120]
[319526205,1710827456627,-500.0,0.00054794,120]
[319526206,1710827456638,-500.0,0.00054794,120]
[319526207,1710827456648,-500.0,0.00054794,120]
[319526208,1710827456657,-500.0,0.00054794,120]
[319526209,1710827456667,-500.0,0.00054794,120]
[319526210,1710827456677,-1669.33,0.00054794,120]
[319526211,1710827456686,-500.0,0.00054794,120]
[319526212,1710827456696,-500.0,0.00054794,120]
[319526213,1710827456709,-500.0,0.00054794,120]
[319526214,1710827456719,-500.0,0.00054794,120]
[319526215,1710827456728,-500.0,0.00054794,120]
[319526216,1710827456737,-1063.99,0.00054794,120]
[319526217,1710827456747,-500.0,0.00054794,120]
[319526218,1710827456758,-500.0,0.00054794,120]
[319526219,1710827456767,-500.0,0.00054794,120]
[319526220,1710827456777,-500.0,0.00054794,120]
[319526221,1710827456788,-1101.81,0.00054794,120]
[319526222,1710827456797,-5517.49,0.00054794,120]
[319526223,1710827456806,-500.0,0.00054794,120]
[319526224,1710827456815,-506.02096442,0.00054794,120]
[319526225,1710827456825,-829.57,0.00054794,2]
[319526226,1710827456834,-500.0,0.00054794,120]
[319526227,1710827456843,-723.99,0.00054794,120]
[319526228,1710827456853,-2640.45,0.00054794,120]
[319526229,1710827456864,-500.0,0.00054794,120]
[319526230,1710827456873,-500.0,0.00054794,120]
[319526231,1710827456883,-500.0,0.00054794,120]
[319526232,1710827456892,-2000.0,0.00054794,120]
[319526233,1710827456902,-500.3546189,0.00054794,120]
[319526234,1710827456911,-1422.87,0.00054794,120]
[319526235,1710827456921,-831.79,0.00054794,120]
[319526236,1710827456930,-500.0,0.00054794,120]
[319526237,1710827456940,-500.0,0.00054794,120]
[319526238,1710827456950,-1889.43,0.00054794,120]
[319526239,1710827456963,-501.44,0.00054794,120]
[319526240,1710827456972,-500.0,0.00054794,120]
[319526241,1710827456982,-1718.81,0.00054794,120]
[319526242,1710827456991,-500.0,0.00054794,120]
[319526243,1710827457001,-500.0,0.00054794,120]
[319526244,1710827457011,-17299.49,0.00054794,120]
[319526245,1710827457021,-500.0,0.00054794,120]
[319526246,1710827457031,-500.0,0.00054794,120]
[319526247,1710827457127,-500.0,0.00054794,120]
[319526248,1710827457136,-500.0,0.00054794,120]
[319526249,1710827457145,-568.35,0.00054794,120]
[319526250,1710827457155,-500.0,0.00054794,120]
[319526251,1710827457164,-575.02,0.00054794,120]
[319526252,1710827457173,-500.0,0.00054794,120]
[319526253,1710827457182,-1873.11,0.00054794,120]
[319526254,1710827457191,-1866.96,0.00054794,120]
[319526255,1710827457201,-811.96,0.00054794,120]
[319526256,1710827457214,-500.0,0.00054794,120]
[319526257,1710827457223,-500.0,0.00054794,120]
[319526258,1710827457232,-500.0,0.00054794,120]
[319526259,1710827457241,-504.99976001,0.00054794,120]
[319526260,1710827457251,-500.0,0.00054794,120]
[319526261,1710827457261,-500.0,0.00054794,120]
[319526262,1710827457270,-500.0,0.00054794,120]
[319526263,1710827457280,-2357.17,0.00054794,120]
[319526264,1710827457289,-502.21112632,0.00054794,120]
[319526265,1710827457298,-500.0,0.00054794,120]
[319526266,1710827457309,-500.0,0.00054794,120]
[319526267,1710827457318,-500.0,0.00054794,120]
[319526268,1710827457327,-500.0,0.00054794,120]
[319526269,1710827457336,-500.0,0.00054794,120]
[319526270,1710827457346,-500.0,0.00054794,120]
[319526271,1710827457355,-500.0,0.00054794,120]
[319526272,1710827457364,-500.0,0.00054794,120]
[319526273,1710827457373,-1040.88,0.00054794,120]
[319526274,1710827457383,-444.16066902,0.00054794,120]
[319526275,1710827457392,-2406.01,0.00054794,120]
[319526276,1710827457402,-500.0,0.00054794,120]
[319526277,1710827457411,-500.0,0.00054794,120]
[319526278,1710827457421,-500.0,0.00054794,120]
[319526279,1710827457430,-502.73274622,0.00054794,120]
[319526280,1710827457439,-500.0,0.00054794,120]
[319526281,1710827457448,-500.0,0.00054794,120]
[319526282,1710827457458,-6514.2,0.00054794,120]
[319526283,1710827457467,-2625.47,0.00054794,120]
[319526284,1710827457478,-642.2,0.00054794,120]
[319526285,1710827457487,-1089.93,0.00054794,120]
[319526286,1710827457499,-660.71,0.00054794,120]
[319526287,1710827457509,-500.0,0.00054794,120]
[319526288,1710827457520,-1126.8,0.00054794,120]
[319526289,1710827457537,-500.0,0.00054794,120]
[319526290,1710827457555,-173.69598795,0.00054794,120]
[319526291,1710827457564,-500.0,0.00054794,120]
[319526292,1710827457573,-500.0,0.00054794,120]
[319526293,1710827457583,-500.0,0.00054794,120]
[319526294,1710827457592,-500.0,0.00054794,120]
[319526295,1710827457601,-500.0,0.00054794,120]
[319526296,1710827457611,-500.0,0.00054794,120]
[319526297,1710827457620,-500.0,0.00054794,120]
[319526298,1710827457629,-500.0,0.00054794,120]
[319526299,1710827457638,-636.97,0.00054794,120]
[319526300,1710827457647,-151.0,0.00054794,120]
[319526301,1710827457656,-500.0,0.00054794,120]
[319526302,1710827457666,-151.0,0.00054794,120]
[319526303,1710827457675,-1652.91,0.00054794,120]
[319526304,1710827457683,-1070.72,0.00054794,120]
[319526305,1710827457692,-500.0,0.00054794,120]
[319526306,1710827457701,-2901.93,0.00054794,120]
[319526307,1710827457714,-14962.68,0.00054794,120]
[319526308,1710827457722,-1082.41,0.00054794,120]
[319526309,1710827457731,-500.0,0.00054794,120]
[319526310,1710827457741,-940.31,0.00054794,120]
[319526311,1710827457750,-500.0,0.00054794,120]
[319526312,1710827457760,-1116.86,0.00054794,120]
[319526313,1710827457769,-500.0,0.00054794,120]
[319526314,1710827457779,-500.0,0.00054794,120]
[319526315,1710827457789,-500.0,0.00054794,120]
[319526316,1710827457799,-500.0,0.00054794,120]
[319526317,1710827457809,-500.0,0.00054794,120]
[319526318,1710827457817,-500.0,0.00054794,120]
[319526319,1710827457827,-618.40866391,0.00054794,120]
[319526320,1710827457836,-500.0,0.00054794,120]
[319526321,1710827457846,-586.10083048,0.00054794,120]
[319526322,1710827457856,-500.0,0.00054794,120]
[319526323,1710827457867,-151.0,0.00054794,120]
[319526324,1710827457878,-151.0,0.00054794,120]
[319526325,1710827457888,-500.0,0.00054794,120]
[319526326,1710827457899,-500.0,0.00054794,120]
[319526327,1710827457909,-1733.23,0.00054794,120]
[319526328,1710827457919,-630.47,0.00054794,120]
[319526329,1710827457928,-42693.99,0.00054794,120]
[319526330,1710827457938,-790.43,0.00054794,120]
[319526331,1710827457947,-1797.54,0.00054794,120]
[319526332,1710827457957,-500.0,0.00054794,120]
[319526333,1710827457967,-551.71,0.00054794,120]
[319526334,1710827457976,-2323.47,0.00054794,120]
[319526335,1710827457986,-500.0,0.00054794,120]
[319526336,1710827457995,-500.0,0.00054794,120]
[319526337,1710827458006,-500.0,0.00054794,120]
[319526338,1710827458016,-500.0,0.00054794,120]
[319526339,1710827458026,-500.0,0.00054794,120]
[319526340,1710827458035,-1627.65,0.00054794,120]
[319526341,1710827458045,-2587.93,0.00054794,120]
[319526342,1710827458054,-500.0,0.00054794,120]
[319526343,1710827458064,-500.0,0.00054794,120]
[319526344,1710827458073,-500.0,0.00054794,120]
[319526345,1710827458083,-500.0,0.00054794,120]
[319526346,1710827458092,-500.0,0.00054794,120]
[319526347,1710827458101,-789.4,0.00054794,120]
[319526348,1710827458111,-3107.75,0.00054794,120]
[319526349,1710827458120,-500.0,0.00054794,120]
[319526350,1710827458130,-690.12,0.00054794,120]
[319526351,1710827458139,-500.0,0.00054794,120]
[319526352,1710827458148,-500.0,0.00054794,120]
[319526353,1710827458157,-151.0,0.00054794,30]
[319526354,1710827458167,-151.0,0.00054794,30]
[319526355,1710827458176,-500.0,0.00054794,120]
[319526356,1710827458186,-186.98629567,0.00054794,120]
[319526357,1710827458196,-2745.12,0.00054794,120]
[319526358,1710827458209,-1463.63,0.00054794,120]
[319526359,1710827458221,-1332.37,0.00054794,120]
[319526360,1710827458231,-500.0,0.00054794,120]
[319526361,1710827458240,-500.0,0.00054794,120]
[319526362,1710827458250,-500.0,0.00054794,120]
[319526363,1710827458260,-1293.97,0.00054794,120]
[319526364,1710827458270,-2204.05,0.00054794,120]
[319526365,1710827458280,-20464.22,0.00054794,120]
[319526366,1710827458289,-500.0,0.00054794,120]
[319526367,1710827458300,-501.30000314,0.00054794,120]
[319526368,1710827458312,-500.0,0.00054794,120]
[319526369,1710827458323,-500.0,0.00054794,120]
[319526370,1710827458334,-788.79,0.00054794,120]
[319526371,1710827458344,-500.0,0.00054794,120]
[319526372,1710827458354,-2173.0,0.00054794,120]
[319526373,1710827458364,-500.0,0.00054794,120]
[319526374,1710827458374,-500.0,0.00054794,120]
[319526375,1710827458385,-500.0,0.00054794,120]
[319526376,1710827458396,-712.63,0.00054794,120]
[319526377,1710827458406,-500.0,0.00054794,120]
[319526378,1710827458415,-520.44648276,0.00054794,120]
[319526379,1710827458425,-500.0,0.00054794,120]
[319526380,1710827458433,-500.0,0.00054794,120]
[319526381,1710827458443,-500.0,0.00054794,120]
[319526382,1710827458453,-500.0,0.00054794,120]
[319526383,1710827458468,-747.7,0.00054794,120]
[319526384,1710827458478,-1460.04,0.00054794,120]
[319526385,1710827458488,-983.3,0.00054794,120]
[319526386,1710827458498,-555.22756915,0.00054794,120]
[319526387,1710827458508,-1137.14,0.00054794,120]
[319526388,1710827458518,-5519.3,0.00054794,120]
[319526389,1710827458529,-500.0,0.00054794,120]
[319526390,1710827458538,-500.0,0.00054794,120]
[319526391,1710827458548,-500.0,0.00054794,120]
[319526392,1710827458558,-1542.16,0.00054794,120]
[319526393,1710827458568,-500.0,0.00054794,120]
[319526394,1710827458578,-500.0,0.00054794,120]
[319526395,1710827458588,-2267.0,0.00054794,120]
[319526396,1710827458598,-503.54264751,0.00054794,20]
[319526397,1710827458609,-500.0,0.00054794,120]
[319526398,1710827458619,-750.31,0.00054794,120]
[319526399,1710827458628,-500.0,0.00054794,120]
[319526400,1710827458637,-727.93,0.00054794,120]
[319526401,1710827458647,-500.0,0.00054794,120]
[319526402,1710827458656,-4080.42,0.00054794,120]
[319526403,1710827458667,-500.0,0.00054794,120]
[319526404,1710827458677,-1928.86,0.00054794,120]
[319526405,1710827458687,-500.0,0.00054794,120]
[319526406,1710827458697,-2144.67,0.00054794,120]
[319526407,1710827458711,-1213.92,0.00054794,120]
[319526408,1710827458721,-151.0,0.00054794,120]
[319526409,1710827458730,-501.46744592,0.00054794,120]
[319526410,1710827458740,-612.48,0.00054794,120]
[319526411,1710827458752,-151.0,0.00054794,120]
[319526412,1710827458763,-151.0,0.00054794,120]
[319526413,1710827458773,-841.27,0.00054794,120]
[319526414,1710827458784,-529.15,0.00054794,120]
[319526415,1710827458793,-1271.64,0.00054794,120]
[319526416,1710827458802,-1008.76,0.00054794,120]
[319526417,1710827458811,-564.77415297,0.00054794,120]
[319526418,1710827458820,-500.0,0.00054794,120]
[319526419,1710827458830,-2173.5,0.00054794,120]
[319526420,1710827458839,-641.45,0.00054794,120]
[319526421,1710827458848,-2497.12,0.00054794,120]
[319526422,1710827458857,-500.0,0.00054794,120]
[319526423,1710827458867,-500.0,0.00054794,120]
[319526424,1710827458875,-500.0,0.00054794,120]
[319526425,1710827458885,-3047.18,0.00054794,120]
[319526426,1710827458894,-1959.73,0.00054794,120]
[319526427,1710827458903,-7410.7,0.00054794,120]
[319526428,1710827458912,-612.7,0.00054794,120]